bitfinex/quotes_ETHUSD_20250404
["timestamp","ask_amount","ask_price","bid_price","bid_amount"]
[1743727563290,23.04000357,1815.2,1815.1,0.26592525]
[1743727563493,23.04000357,1815.2,1815.1,0.1]
[1743727563724,23.04000357,1815.2,1815.1,0.26592525]
[1743727564023,17.53197357,1815.2,1815.1,0.26592525]
[1743727564333,20.63153,1815.2,1815.1,0.1]
[1743727565511,20.63153,1815.2,1815.1,0.26543609]
[1743727565726,20.63153,1815.2,1815.1,0.1]
[1743727565928,20.63153,1815.2,1815.1,0.26543609]
[1743727566105,20.63153,1815.2,1815.1,0.1]
[1743727566301,23.72325357,1815.2,1815.1,0.26543609]
[1743727566501,14.51903,1815.2,1815.1,0.1]
[1743727566705,19.82303,1815.2,1815.1,0.26543609]
[1743727566902,9.01,1815.2,1815.1,0.1]
[1743727567216,14.36903636,1815.2,1815.1,0.1]
[1743727567529,14.314,1815.2,1815.1,0.26543609]
[1743727567734,6.73008199,1815.4,1815.1,5.60933]
[1743727567735,3.41209199,1815.4,1815.1,5.60933]
[1743727567896,5.304,1815.2,1815.1,11.28409609]
[1743727568226,5.304,1815.2,1815.1,5.77476609]
[1743727568428,5.304,1815.2,1815.1,0.26543609]
[1743727568802,5.35903636,1815.2,1815.1,0.26543609]
[1743727569199,5.35903636,1815.2,1815.1,5.77476609]
[1743727569431,5.304,1815.2,1815.1,5.77476609]
[1743727570611,5.304,1815.2,1815.1,0.26543609]
[1743727571020,5.304,1815.2,1815.1,5.77476609]
[1743727571229,0.05503636,1815.3,1815.2,5.50903]
[1743727571415,5.304,1815.3,1815.2,11.18204327]
[1743727571627,5.304,1815.3,1815.2,5.67301327]
[1743727572538,0.05503636,1815.4,1815.3,5.50873]
[1743727572828,9.06503636,1815.5,1815.4,5.50842]
[1743727573135,14.313,1815.5,1815.4,5.67187297]
[1743727573298,14.313,1815.5,1815.4,0.16345297]
[1743727573492,14.313,1815.5,1815.3,5.85823]
[1743727573698,14.313,1815.5,1815.3,0.3495]
[1743727573929,14.313,1815.5,1815.4,0.16048432]
[1743727574135,14.313,1815.5,1815.4,5.66890432]
[1743727574494,6.01,1815.5,1815.4,5.66890432]
[1743727574699,5.303,1815.7,1815.5,5.50792]
[1743727574900,5.303,1815.7,1815.6,5.50782]
[1743727575201,5.303,1815.7,1815.6,5.66763449]
[1743727575402,5.303,1815.7,1815.6,0.15981449]
[1743727576033,5.303,1815.7,1815.6,5.66763449]
[1743727576242,5.303,1815.7,1815.6,0.15981449]
[1743727578137,6.01,1815.9,1815.6,1.07608794]
[1743727578337,6.01,1815.9,1815.8,5.50721]
[1743727578732,6.01,1815.9,1815.8,5.66572642]
[1743727579143,6.01,1815.9,1815.8,0.15851642]
[1743727579514,6.06503636,1815.9,1815.7,11.01491]
[1743727579714,6.06503636,1815.9,1815.7,5.5074]
[1743727580010,6.06503636,1815.9,1815.8,5.66569152]
[1743727580011,6.01,1815.9,1815.8,5.66569152]
[1743727582644,0.05503636,1816.0,1815.8,11.17281152]
[1743727582834,0.05503636,1816.0,1815.8,5.66560152]
[1743727583253,0.05503636,1816.0,1815.8,11.17266152]
[1743727583417,0.05503636,1816.0,1815.8,5.66554152]
[1743727583915,0.05503636,1816.0,1815.8,11.17260152]
[1743727584316,0.05503636,1816.0,1815.8,5.66554152]
[1743727584943,0.05503636,1816.0,1815.9,5.50691]
[1743727585246,0.05503636,1816.0,1815.9,0.15647128]
[1743727587031,5.71282974,1816.1,1815.9,5.66338128]
[1743727587220,7.36017536,1816.1,1815.9,5.66338128]
[1743727587414,7.36017536,1816.1,1815.9,0.15647128]
[1743727587620,12.86649536,1816.1,1815.9,0.15647128]
[1743727587854,12.811459,1816.1,1815.9,0.15647128]
[1743727588016,0.05503636,1816.0,1815.9,0.15647128]
[1743727589246,7.305139,1816.1,1815.9,11.17014128]
[1743727589453,9.01,1816.2,1816.1,5.5063]
[1743727589661,14.312,1816.2,1816.1,0.15594139]
[1743727590624,14.312,1816.2,1816.0,5.50649]
[1743727590929,14.312,1816.2,1816.0,11.01297]
[1743727591232,14.312,1816.2,1816.0,5.50648]
[1743727591429,14.312,1816.2,1816.0,11.01298]
[1743727591633,14.312,1816.2,1816.1,5.5063]
[1743727591634,5.302,1816.2,1816.1,5.5063]
[1743727591844,5.302,1816.2,1816.1,5.66224139]
[1743727593759,5.302,1816.2,1816.1,0.15594139]
[1743727594322,12.16730364,1816.2,1816.1,0.15594139]
[1743727595167,12.16730364,1816.2,1815.9,5.50666]
[1743727595326,12.16730364,1816.2,1816.1,0.15594139]
[1743727595528,12.16730364,1816.2,1816.0,0.15620632]
[1743727595763,12.16730364,1816.2,1816.1,0.15594139]
[1743727596061,12.16730364,1816.2,1815.9,5.50666]
[1743727596266,12.16730364,1816.2,1816.0,0.15620632]
[1743727596424,5.41296272,1816.1,1816.0,0.15620632]
[1743727596621,5.41296272,1816.1,1815.5,5.50811]
[1743727596622,5.41296272,1816.1,1815.6,0.3495]
[1743727596825,4.19623236,1815.9,1815.7,0.15700129]
[1743727597137,5.301,1815.8,1815.7,0.15700129]
[1743727597463,13.86324636,1815.8,1815.7,0.15700129]
[1743727597644,19.31565,1815.8,1815.4,5.85781]
[1743727597836,19.31565,1815.8,1815.5,0.15714757]
[1743727598024,1.931565,1815.7,1815.5,0.15714757]
[1743727598227,0.05503636,1815.6,1815.5,0.15714757]
[1743727598621,0.05503636,1815.6,1815.3,5.5085]
[1743727598836,5.56285636,1815.6,1815.4,0.15744758]
[1743727599032,9.70435236,1815.5,1815.4,0.15744758]
[1743727599275,7.14875323,1815.5,1815.1,0.1]
[1743727599424,11.01796,1815.3,1815.1,0.1]
[1743727599623,0.05503636,1815.2,1815.1,0.1]
[1743727600521,3.05503636,1815.3,1815.1,5.60933]
[1743727600762,3.0,1815.3,1815.1,5.95883]
[1743727601200,3.0,1815.3,1815.1,11.46807]
[1743727601493,3.0,1815.3,1815.1,5.95874]
[1743727601695,3.0,1815.3,1815.1,0.4495]
[1743727602266,3.0,1815.3,1815.1,5.95879]
[1743727602464,3.0,1815.3,1815.1,0.4495]
[1743727602686,3.0,1815.3,1815.1,5.95869]
[1743727602880,11.311,1815.5,1815.1,6.554699]
[1743727603081,11.311,1815.5,1815.4,5.50842]
[1743727603283,11.311,1815.5,1815.4,5.85792]
[1743727603753,6.01,1815.5,1815.4,5.85792]
[1743727605987,39.672,1815.7,1815.6,5.50782]
[1743727606349,5.301,1815.8,1815.7,5.50751]
[1743727606685,5.301,1815.8,1815.6,5.50782]
[1743727607101,5.301,1815.8,1815.6,11.01551]
[1743727607587,8.301,1815.8,1815.7,5.50751]
[1743727607891,6.01,1815.9,1815.8,5.50721]
[1743727607892,14.311,1815.9,1815.8,5.50721]
[1743727608188,11.311,1815.9,1815.8,5.50721]
[1743727609596,11.311,1815.9,1815.8,5.65135082]
[1743727609792,3.8248,1816.2,1816.0,5.5066]
[1743727609993,6.01,1816.3,1816.1,5.5063]
[1743727610298,11.57083636,1816.3,1816.1,0.14369473]
[1743727610462,11.5158,1816.3,1816.1,0.14369473]
[1743727610663,0.05503636,1816.2,1816.1,0.14369473]
[1743727610994,14.55012924,1816.3,1816.1,0.14369473]
[1743727611371,0.05503636,1816.2,1816.0,5.5066]
[1743727612907,0.05503636,1816.2,1815.9,5.50688]
[1743727613068,9.75726872,1816.2,1815.8,5.50715]
[1743727613405,7.26774687,1816.1,1815.8,5.50715]
[1743727613604,1.81636323,1816.1,1815.9,5.50691]
[1743727613812,1.81636323,1816.1,1815.9,5.65057623]
[1743727614309,7.32269323,1816.1,1815.9,0.14366623]
[1743727614966,1.81636323,1816.1,1815.9,0.14366623]
[1743727615367,7.32267323,1816.1,1815.9,0.14366623]
[1743727615582,0.73226732,1816.0,1815.9,0.14366623]
[1743727616897,6.03226732,1816.0,1815.9,0.14366623]
[1743727617128,6.03226732,1816.0,1815.8,5.5071]
[1743727617306,6.03226732,1816.0,1815.9,0.14352665]
[1743727617695,11.53886732,1816.0,1815.9,0.14352665]
[1743727617894,11.53886732,1816.0,1815.7,5.50744]
[1743727618210,0.05503636,1815.9,1815.7,5.50741]
[1743727618611,11.53886732,1816.0,1815.7,11.01479]
[1743727618808,1.20892309,1815.9,1815.7,5.50738]
[1743727618969,6.71584309,1815.9,1815.6,11.01543]
[1743727619298,0.7856,1815.8,1815.6,5.50769]
[1743727620298,0.7856,1815.8,1815.6,11.01536]
[1743727620602,0.7856,1815.8,1815.3,0.3495]
[1743727620789,5.56256636,1815.7,1815.4,5.5083]
[1743727621101,5.3,1815.6,1815.4,5.5083]
[1743727621483,5.3,1815.6,1815.4,11.01661]
[1743727621689,5.3,1815.6,1815.4,5.5083]
[1743727624481,5.3,1815.6,1815.4,5.50829]
[1743727624878,5.3,1815.6,1815.5,5.50812]
[1743727626003,5.3,1815.6,1815.4,5.50829]
[1743727626406,5.3,1815.6,1815.5,5.50812]
[1743727628135,5.3,1815.6,1815.4,5.50829]
[1743727628432,5.3,1815.6,1815.4,11.0166]
[1743727628635,5.3,1815.6,1815.4,5.50829]
[1743727628779,5.35503636,1815.6,1815.5,0.14500565]
[1743727629397,16.97783036,1815.6,1815.5,0.14500565]
[1743727629599,6.26561,1815.3,1815.1,0.1]
[1743727629795,10.86406636,1815.2,1815.1,0.1]
[1743727630035,10.80903,1815.2,1815.1,0.1]
[1743727631440,5.3,1815.2,1815.1,0.1]
[1743727631724,5.3,1815.5,1815.3,5.50873]
[1743727631884,5.3,1815.5,1815.3,11.0173]
[1743727632526,5.3,1815.5,1815.4,5.50842]
[1743727633628,5.3,1815.5,1815.3,5.50857]
[1743727633994,5.35503636,1815.5,1815.3,5.50857]
[1743727634237,13.101277,1815.5,1815.2,11.01794]
[1743727634420,13.80304064,1815.5,1815.2,5.50897]
[1743727634631,5.50846,1815.4,1815.1,5.60924]
[1743727634790,23.507683,1815.5,1815.1,11.11845]
[1743727634994,5.50843,1815.4,1815.1,5.60921]
[1743727635193,0.05503636,1815.3,1815.1,5.60921]
[1743727635399,5.50843,1815.4,1815.1,5.60921]
[1743727635601,9.76026872,1815.3,1815.1,0.1]
[1743727635895,9.26583,1815.2,1815.1,0.1]
[1743727636421,9.32086636,1815.2,1815.1,0.1]
[1743727636601,9.32086636,1815.2,1815.1,0.23766075]
[1743727636602,15.33086636,1815.2,1815.1,0.23766075]
[1743727636804,15.27583,1815.2,1815.1,0.1]
[1743727636986,17.77392224,1815.2,1815.1,0.1]
[1743727644122,21.9701546,1815.2,1815.1,0.1]
[1743727644314,22.74048218,1815.2,1815.1,0.1]
[1743727647265,5.51101,1814.6,1814.3,5.86111]
[1743727647541,10.86804636,1814.6,1814.4,0.14154391]
[1743727647944,10.86804636,1814.6,1814.3,5.86111]
[1743727648142,13.86804636,1814.6,1814.5,0.14127852]
[1743727648350,13.81301,1814.6,1814.4,0.14154391]
[1743727648509,13.81301,1814.6,1814.5,0.14127852]
[1743727648714,13.81301,1814.6,1814.3,5.86111]
[1743727648916,13.81301,1814.6,1814.5,0.14127852]
[1743727649214,19.32402,1814.6,1814.5,0.14127852]
[1743727649433,19.32402,1814.6,1814.3,0.3495]
[1743727649747,19.32402,1814.6,1814.4,0.14154391]
[1743727649951,5.51116,1814.5,1814.4,0.14154391]
[1743727650135,5.51153,1814.4,1814.1,5.96179]
[1743727650342,5.51153,1814.4,1814.1,5.96178]
[1743727650536,11.43986511,1814.5,1814.1,5.96173]
[1743727650739,0.41739511,1814.5,1814.3,5.51176]
[1743727651048,9.15437769,1814.6,1814.4,0.2995]
[1743727651049,8.35703636,1814.6,1814.4,0.2995]
[1743727651221,13.86793636,1814.6,1814.4,0.2995]
[1743727651422,13.8129,1814.6,1814.4,0.2995]
[1743727651747,8.302,1814.6,1814.4,5.81087]
[1743727652053,13.86789636,1814.6,1814.4,0.2995]
[1743727652239,13.81286,1814.6,1814.4,0.2995]
[1743727652953,8.303,1814.8,1814.5,11.02191]
[1743727653122,8.35803636,1814.8,1814.5,11.02191]
[1743727653654,8.35803636,1814.8,1814.6,5.51084]
[1743727653836,8.35803636,1814.8,1814.5,5.51088]
[1743727654031,23.57516872,1814.8,1814.4,11.32227]
[1743727654228,25.91842085,1814.8,1814.4,5.81087]
[1743727654432,5.51057,1814.7,1814.4,5.81087]
[1743727654637,0.05503636,1814.6,1814.4,0.2995]
[1743727654830,5.56590636,1814.6,1814.3,5.81114]
[1743727655026,11.07695636,1814.6,1814.3,5.81114]
[1743727655329,0.7472162,1814.5,1814.2,11.32346]
[1743727655648,0.69217984,1814.5,1814.2,5.81143]
[1743727655853,0.69217984,1814.5,1814.2,11.32336]
[1743727656019,0.69217984,1814.5,1814.3,5.51172]
[1743727656367,9.76213872,1814.6,1814.3,5.51164]
[1743727656564,11.07690636,1814.6,1814.3,5.51164]
[1743727656719,5.51087,1814.6,1814.3,5.51164]
[1743727656919,0.05503636,1814.6,1814.4,5.51133]
[1743727657166,6.201281,1814.6,1814.2,0.2995]
[1743727657350,5.51117,1814.5,1814.2,5.81145]
[1743727657731,0.05503636,1814.5,1814.2,5.81144]
[1743727657931,0.05503636,1814.5,1814.2,11.32338]
[1743727658133,0.05503636,1814.5,1814.2,5.81144]
[1743727658454,5.56622636,1814.5,1814.2,5.81144]
[1743727658753,7.1570977,1814.5,1814.3,0.14236842]
[1743727658921,7.1570977,1814.5,1814.3,5.65398842]
[1743727658922,1.6459077,1814.5,1814.3,5.65398842]
[1743727659123,5.56633636,1814.5,1814.3,0.14236842]
[1743727659325,10.81446,1814.4,1814.3,0.14236842]
[1743727659557,22.99752472,1814.4,1814.3,8.42e-06]
[1743727659723,9.30267,1814.2,1814.1,1e-05]
[1743727659923,14.99942512,1814.2,1814.1,1e-05]
[1743727660267,14.94438876,1814.2,1814.1,1e-05]
[1743727660467,5.51452,1813.4,1813.2,0.2995]
[1743727660760,5.35803636,1813.4,1813.1,0.1]
[1743727661057,20.58370872,1813.4,1813.1,0.1]
[1743727661230,9.71134236,1813.2,1813.1,0.1]
[1743727661421,12.76637872,1813.2,1813.1,0.1]
[1743727661621,12.71134236,1813.2,1813.1,0.1]
[1743727662023,13.12725453,1813.2,1813.1,0.1]
[1743727662622,13.91785453,1813.2,1813.1,0.1]
[1743727662819,15.86113298,1813.2,1813.1,0.1]
[1743727664823,5.5171,1812.6,1812.4,0.2995]
[1743727665047,5.306,1812.5,1812.4,5.81704]
[1743727665240,5.306,1812.5,1812.4,0.2995]
[1743727665241,5.36103636,1812.5,1812.4,0.2995]
[1743727665555,5.306,1812.5,1812.4,0.2995]
[1743727665852,5.306,1812.5,1812.4,5.81704]
[1743727666235,5.306,1812.5,1812.4,0.2995]
[1743727666644,5.306,1812.5,1812.4,5.81704]
[1743727667260,5.306,1812.5,1812.4,5.96871754]
[1743727669958,0.05503636,1812.7,1812.5,5.51719]
[1743727670158,3.05503636,1812.8,1812.5,11.03428]
[1743727670331,8.36103636,1812.8,1812.6,0.15127546]
[1743727671659,8.306,1812.8,1812.6,0.15127546]
[1743727671867,3.0,1812.8,1812.6,0.15127546]
[1743727672025,5.51542,1813.1,1812.6,0.71810901]
[1743727672373,5.307,1813.0,1812.7,5.816]
[1743727672569,8.307,1813.0,1812.7,5.816]
[1743727672753,8.307,1813.0,1812.8,0.15074364]
[1743727673162,13.82273,1813.0,1812.8,0.15074364]
[1743727673854,5.51602,1812.9,1812.8,0.15074364]
[1743727674060,5.51636,1812.8,1812.5,5.51721]
[1743727674264,0.05503636,1812.7,1812.6,0.15127546]
[1743727674633,0.05503636,1812.7,1812.4,11.33439]
[1743727674835,0.05503636,1812.7,1812.5,0.15154142]
[1743727675531,5.51636,1812.8,1812.5,0.15154142]
[1743727675755,0.05503636,1812.8,1812.5,5.66874142]
[1743727676184,0.05503636,1812.8,1812.5,11.18587142]
[1743727676392,0.05503636,1812.8,1812.5,5.66867142]
[1743727676575,5.57135636,1812.8,1812.5,5.66867142]
[1743727676910,5.51676,1812.7,1812.5,0.15154142]
[1743727677222,5.308,1812.6,1812.5,0.15154142]
[1743727677561,5.308,1812.6,1812.5,5.66878142]
[1743727677762,5.308,1812.8,1812.6,5.51676]
[1743727677956,5.308,1812.8,1812.7,5.51651]
[1743727678461,5.308,1812.8,1812.7,5.66679708]
[1743727678699,5.308,1812.8,1812.7,0.15028708]
[1743727679198,5.308,1812.8,1812.6,5.51693]
[1743727679396,5.308,1812.8,1812.7,0.15028708]
[1743727679715,5.308,1812.8,1812.6,5.51679]
[1743727680199,5.308,1812.8,1812.7,0.14921406]
[1743727680577,10.82432,1812.8,1812.5,5.51717]
[1743727680888,0.05503636,1812.7,1812.5,5.51717]
[1743727681755,5.36303636,1812.8,1812.6,5.51672]
[1743727682094,5.308,1812.8,1812.6,11.03357]
[1743727682560,5.308,1812.8,1812.6,5.51672]
[1743727683804,5.308,1812.8,1812.7,5.51663]
[1743727684797,5.308,1812.8,1812.7,5.81613]
[1743727684995,40.5507,1813.2,1813.0,5.51569]
[1743727685195,45.042,1813.2,1813.0,5.51569]
[1743727685980,5.71335504,1813.3,1813.0,0.35465509]
[1743727686187,5.71335504,1813.3,1813.1,5.51526]
[1743727686415,5.308,1813.3,1813.1,5.51526]
[1743727686774,5.08157936,1813.2,1812.8,0.2995]
[1743727686997,5.08157936,1813.2,1812.3,5.51775]
[1743727686998,5.51574,1813.0,1812.7,5.51657]
[1743727687174,0.05503636,1813.0,1812.7,11.03305]
[1743727687882,0.05503636,1813.0,1812.8,5.51629]
[1743727688088,0.05503636,1812.9,1812.7,5.51648]
[1743727688288,5.308,1812.9,1812.7,5.51648]
[1743727688491,5.308,1812.9,1812.8,0.14701293]
[1743727688816,10.87909636,1812.9,1812.6,5.81633]
[1743727689108,5.51632,1812.8,1812.7,0.14727882]
[1743727689310,10.81407264,1812.8,1812.7,0.14727882]
[1743727689522,10.869109,1812.8,1812.7,0.14853882]
[1743727689685,5.352789,1812.8,1812.5,5.51709]
[1743727690010,6.1247,1812.9,1812.7,5.51648]
[1743727690192,5.36303636,1812.9,1812.7,11.03296]
[1743727690388,5.36303636,1812.9,1812.8,5.66459292]
[1743727690716,5.308,1812.9,1812.8,0.14827292]
[1743727691215,5.308,1812.9,1812.8,5.66459292]
[1743727691582,5.308,1812.9,1812.8,0.14827292]
[1743727691981,6.32012,1813.1,1812.8,0.14827292]
[1743727691982,13.87886636,1813.0,1812.8,0.14827292]
[1743727692195,8.308,1813.0,1812.8,0.14827292]
[1743727692411,15.34170836,1813.0,1812.8,0.14827292]
[1743727692601,15.286672,1813.0,1812.8,0.14827292]
[1743727694509,9.770812,1813.0,1812.8,5.66456292]
[1743727694735,8.36303636,1813.0,1812.8,5.66448292]
[1743727695215,8.308,1813.0,1812.8,11.18068292]
[1743727695386,8.308,1813.0,1812.8,5.66447292]
[1743727695585,8.36303636,1813.0,1812.8,5.66447292]
[1743727696514,18.08874936,1813.0,1812.8,0.14827292]
[1743727696682,19.96368452,1813.0,1812.8,0.14827292]
[1743727697219,25.47958452,1813.0,1812.8,0.14827292]
[1743727697417,25.47958452,1813.0,1812.6,5.57196363]
[1743727697613,5.51615,1812.9,1812.6,0.05516363]
[1743727697921,5.57118636,1812.9,1812.7,0.14793267]
[1743727698125,5.57118636,1812.9,1812.5,11.0342]
[1743727698284,11.08737636,1812.9,1812.5,11.0342]
[1743727698482,11.03234,1812.9,1812.6,0.1481986]
[1743727698685,5.51615,1812.9,1812.6,0.1481986]
[1743727698981,5.57118636,1812.9,1812.6,0.1481986]
[1743727699283,5.51615,1812.9,1812.6,5.72018224]
[1743727699729,5.51615,1812.9,1812.6,11.23697224]
[1743727699889,5.51615,1812.9,1812.6,5.6649886]
[1743727700085,5.51652,1812.8,1812.6,0.1481986]
[1743727700404,5.51652,1812.8,1812.4,11.33441]
[1743727700607,5.51652,1812.8,1812.7,0.14788812]
[1743727700806,5.51652,1812.8,1812.5,5.5172]
[1743727701010,6.068382,1812.7,1812.4,0.2995]
[1743727701189,5.51694,1812.6,1812.3,11.03539]
[1743727701623,5.51694,1812.6,1812.3,5.51766]
[1743727702292,11.376382,1812.7,1812.3,5.51766]
[1743727702492,11.376382,1812.7,1812.4,5.51745]
[1743727703527,11.376382,1812.7,1812.5,0.1490836]
[1743727703904,16.893172,1812.7,1812.5,0.1490836]
[1743727704242,0.05503636,1812.6,1812.5,0.1490836]
[1743727704436,0.05503636,1812.6,1812.3,11.3349]
[1743727704722,11.08906636,1812.6,1812.4,0.14934958]
[1743727704927,12.72890184,1812.6,1812.3,0.2995]
[1743727705114,7.21181184,1812.6,1812.4,0.14931457]
[1743727705427,12.7839782,1812.6,1812.2,11.03626]
[1743727705620,11.42165484,1812.6,1812.2,11.03616]
[1743727705818,11.42165484,1812.6,1812.3,5.51784]
[1743727706547,16.93886484,1812.6,1812.2,11.03606]
[1743727706725,0.05503636,1812.5,1812.2,11.03606]
[1743727706911,5.57232636,1812.5,1812.2,5.51803]
[1743727707414,5.57232636,1812.5,1812.2,11.03604]
[1743727707741,0.05503636,1812.5,1812.2,11.03604]
[1743727708305,5.51756,1812.4,1812.1,5.91786]
[1743727708503,5.51756,1812.4,1812.1,11.4362]
[1743727708827,8.01196012,1812.5,1812.2,5.51811]
[1743727709017,8.06699648,1812.5,1812.2,5.51811]
[1743727709415,13.58438648,1812.5,1812.2,5.51811]
[1743727709617,5.51755,1812.4,1812.1,5.61834]
[1743727709932,5.51755,1812.4,1812.1,11.13665]
[1743727710135,8.01196012,1812.5,1812.2,5.51815]
[1743727710335,8.01196012,1812.5,1812.1,5.61831]
[1743727710336,8.06699648,1812.5,1812.1,5.61831]
[1743727710734,8.06699648,1812.5,1812.2,5.51813]
[1743727711236,13.58441648,1812.5,1812.1,11.13663]
[1743727711436,13.52938012,1812.5,1812.1,11.13666]
[1743727711632,0.05503636,1812.4,1812.1,5.61831]
[1743727711815,6.92558437,1812.4,1812.1,5.61831]
[1743727712939,5.308,1812.3,1812.1,5.61831]
[1743727713134,5.308,1812.3,1812.1,11.13663]
[1743727713846,5.308,1812.3,1812.2,5.51815]
[1743727714138,0.41223536,1812.5,1812.4,5.51754]
[1743727714343,5.308,1812.5,1812.4,5.51754]
[1743727714517,6.01,1812.6,1812.4,5.51754]
[1743727714722,12.853952,1812.6,1812.4,5.51754]
[1743727714910,12.853952,1812.6,1812.4,11.03497]
[1743727715112,12.853952,1812.6,1812.4,5.51743]
[1743727715313,13.25935404,1812.6,1812.4,11.03484]
[1743727715512,13.25935404,1812.6,1812.4,11.03482]
[1743727715740,13.25935404,1812.6,1812.3,5.8173]
[1743727715916,13.25935404,1812.6,1812.4,5.51743]
[1743727716110,13.25935404,1812.6,1812.3,5.81726]
[1743727716314,18.77639404,1812.6,1812.3,5.81726]
[1743727716611,13.25935404,1812.6,1812.4,5.51743]
[1743727716840,13.25935404,1812.6,1812.4,11.03484]
[1743727717142,14.72340204,1812.6,1812.5,5.51724]
[1743727717946,9.41540204,1812.6,1812.5,5.51724]
[1743727718241,9.41540204,1812.6,1812.3,11.33496]
[1743727718452,0.833,1812.8,1812.4,5.51752]
[1743727718743,3.05503636,1812.9,1812.7,5.51661]
[1743727719047,5.127221,1812.9,1812.8,0.1498614]
[1743727719639,5.127221,1812.9,1812.7,11.03313]
[1743727720021,5.127221,1812.9,1812.8,0.1498614]
[1743727721039,5.127221,1812.9,1812.7,5.51648]
[1743727721625,5.127221,1812.9,1812.8,0.1498614]
[1743727722011,5.53139847,1812.9,1812.8,0.1498614]
[1743727722412,5.127221,1812.9,1812.8,5.6661814]
[1743727722612,5.308,1813.0,1812.8,5.6661814]
[1743727722813,5.308,1813.0,1812.8,11.1823714]
[1743727724130,3.0,1813.0,1812.9,5.51602]
[1743727724329,3.0,1813.0,1812.9,5.66225465]
[1743727724530,3.0,1813.0,1812.9,0.14623465]
[1743727724854,3.0,1813.0,1812.8,11.03238]
[1743727725161,3.0,1813.0,1812.9,0.14623465]
[1743727725763,3.05503636,1813.0,1812.8,5.51619]
[1743727725967,3.0,1813.0,1812.9,0.14623465]
[1743727726459,3.05503636,1813.0,1812.9,0.14623465]
[1743727726665,3.0,1813.0,1812.8,5.51619]
[1743727726865,3.0,1813.0,1812.9,0.14623465]
[1743727727045,3.0,1813.0,1812.8,11.0324]
[1743727727364,3.0,1813.0,1812.9,0.14623465]
[1743727727558,3.0,1813.0,1812.8,5.51619]
[1743727727763,3.0,1813.0,1812.9,0.14623465]
[1743727728062,3.05503636,1813.0,1812.8,5.51619]
[1743727728259,3.05503636,1813.0,1812.9,0.14623465]
[1743727728463,5.308,1813.1,1812.9,5.66225465]
[1743727728663,5.308,1813.1,1813.0,5.51571]
[1743727728826,5.308,1813.1,1813.0,0.14596881]
[1743727729363,5.308,1813.1,1813.0,5.66167881]
[1743727729663,5.308,1813.1,1813.0,0.14596881]
[1743727730062,10.87844636,1813.1,1813.0,0.14596881]
[1743727730267,12.817816,1813.1,1812.8,5.51624]
[1743727730469,12.76277964,1813.1,1812.8,5.51624]
[1743727730667,0.05503636,1813.0,1812.9,0.14623465]
[1743727730957,5.308,1813.1,1812.9,5.51602]
[1743727731132,5.308,1813.1,1812.9,0.14623465]
[1743727731329,10.82344,1813.1,1812.9,0.14623465]
[1743727731534,0.88803636,1813.0,1812.8,5.51623]
[1743727732768,6.40378636,1813.0,1812.7,5.51657]
[1743727732934,6.40378636,1813.0,1812.7,11.03309]
[1743727733140,0.88803636,1813.0,1812.7,11.03309]
[1743727733367,0.833,1813.0,1812.8,11.03253]
[1743727733669,12.06974855,1813.1,1812.9,0.14609517]
[1743727733832,12.06974855,1813.1,1812.8,11.03253]
[1743727734170,12.06974855,1813.1,1813.0,0.14582933]
[1743727734375,6.55430855,1813.1,1812.9,5.66208517]
[1743727734555,6.60934491,1813.1,1813.0,0.14582933]
[1743727734729,1.24630855,1813.1,1813.0,5.66153933]
[1743727734930,5.307,1813.1,1813.0,5.66153933]
[1743727735131,5.307,1813.1,1813.0,0.14582933]
[1743727735773,5.307,1813.1,1813.0,5.66153933]
[1743727736541,5.307,1813.2,1813.1,5.51541]
[1743727736966,5.307,1813.2,1813.1,5.66041493]
[1743727737467,5.307,1813.2,1813.1,0.14500493]
[1743727738471,5.72929262,1813.2,1813.1,0.14500493]
[1743727740171,5.78432898,1813.2,1813.1,0.14500493]
[1743727740374,12.93363818,1813.2,1812.8,11.03249]
[1743727740534,5.51544,1813.1,1812.9,0.13314095]
[1743727740735,5.51544,1813.1,1812.8,11.03249]
[1743727740736,5.51544,1813.1,1812.8,5.51622]
[1743727740936,5.51544,1813.1,1812.9,0.13314095]
[1743727741146,5.51544,1813.1,1812.8,5.51619]
[1743727741353,0.05503636,1813.0,1812.9,0.13314095]
[1743727741640,5.51544,1813.1,1812.8,11.03238]
[1743727741973,5.51544,1813.1,1812.9,0.13314095]
[1743727742281,7.24646062,1813.1,1812.8,5.51619]
[1743727742469,7.24646062,1813.1,1813.0,0.13287512]
[1743727742673,7.24646062,1813.1,1812.9,0.13314095]
[1743727742969,0.05503636,1813.1,1813.0,0.13287512]
[1743727743545,0.05503636,1813.1,1812.8,11.03264]
[1743727743744,0.05503636,1813.1,1812.9,5.64914095]
[1743727744198,0.05503636,1813.1,1812.9,5.64906095]
[1743727745153,5.306,1813.2,1813.0,5.51571]
[1743727745354,5.36103636,1813.2,1813.1,0.13260931]
[1743727746563,5.306,1813.2,1813.1,5.64801931]
[1743727748098,5.306,1813.2,1813.1,0.13260931]
[1743727748292,0.40516483,1813.3,1813.1,11.16316931]
[1743727748593,5.306,1813.3,1813.1,5.64787931]
[1743727748799,5.36103636,1813.3,1813.1,0.13260931]
[1743727748954,10.87586636,1813.3,1813.1,0.13260931]
[1743727749156,10.87586636,1813.3,1812.6,5.81634]
[1743727749157,5.51595,1813.0,1812.6,5.81634]
[1743727749362,6.18293636,1812.9,1812.7,0.13318372]
[1743727749584,11.69898636,1812.9,1812.6,11.33312]
[1743727749750,0.05503636,1812.8,1812.7,0.13391723]
[1743727749956,0.05503636,1812.8,1812.6,5.5168]
[1743727750200,5.57157636,1812.8,1812.7,0.13391723]
[1743727750502,11.64395,1812.9,1812.5,5.51693]
[1743727750702,11.64395,1812.9,1812.7,0.13391723]
[1743727750852,5.57144636,1812.8,1812.6,0.13418316]
[1743727751084,5.51684,1812.7,1812.3,5.81722]
[1743727751279,5.57153636,1812.8,1812.4,11.03483]
[1743727751682,11.08803636,1812.8,1812.4,11.03483]